[Event "Titled Tuesday Blitz December 06 Late 2022"]
[White "Storey, Charles H"]
[Black "Koellner, Ruben Gideon"]
[WhiteFideId "406686"]
[BlackFideId "12993093"]
[WhiteElo "2427"]
[BlackElo "2666"]
[Result "0-1"]
[Round "04"]
[TimeControl "180+1"]
[Date "2022.12.07"]
[WhiteClock "0:00:06"]
[BlackClock "0:00:08"]

1. e4 {[%clk 0:03:00]}  d6 {[%clk 0:02:58]} 2. d4 {[%clk 0:02:59]}  Nf6 {[%clk 0:02:59]} 3. f3 {[%clk 0:02:58]}  e5 {[%clk 0:02:59]} 4. d5 {[%clk 0:02:55]}  Be7 {[%clk 0:02:58]} 5. Be3 {[%clk 0:02:54]}  O-O {[%clk 0:02:52]} 6. Qd2 {[%clk 0:02:45]}  c6 {[%clk 0:02:38]} 7. c4 {[%clk 0:02:41]}  b5 {[%clk 0:02:38]} 8. b3 {[%clk 0:02:35]}  bxc4 {[%clk 0:02:10]} 9. bxc4 {[%clk 0:02:24]}  Ba6 {[%clk 0:02:08]} 10. Nh3 {[%clk 0:02:14]}  cxd5 {[%clk 0:02:06]} 11. cxd5 {[%clk 0:02:12]}  Bxf1 {[%clk 0:02:06]} 12. Rxf1 {[%clk 0:02:10]}  Nbd7 {[%clk 0:02:03]} 13. Nc3 {[%clk 0:01:59]}  Qa5 {[%clk 0:02:02]} 14. Ne2 {[%clk 0:01:55]}  Qa4 {[%clk 0:01:57]} 15. Kf2 {[%clk 0:01:48]}  Rfc8 {[%clk 0:01:57]} 16. Rfc1 {[%clk 0:01:47]}  Nb6 {[%clk 0:01:55]} 17. Bxb6 {[%clk 0:01:34]}  axb6 {[%clk 0:01:56]} 18. Rxc8+ {[%clk 0:01:31]}  Rxc8 {[%clk 0:01:56]} 19. Rc1 {[%clk 0:01:30]}  Rxc1 {[%clk 0:01:53]} 20. Nxc1 {[%clk 0:01:30]}  Nd7 {[%clk 0:01:42]} 21. Nb3 {[%clk 0:01:27]}  Nc5 {[%clk 0:01:36]} 22. Qc2 {[%clk 0:01:18]}  g6 {[%clk 0:01:29]} 23. Ng1 {[%clk 0:01:16]}  b5 {[%clk 0:01:16]} 24. Ne2 {[%clk 0:01:12]}  Bd8 {[%clk 0:01:11]} 25. Nc3 {[%clk 0:01:12]}  Qc4 {[%clk 0:01:08]} 26. Na1 {[%clk 0:00:49]}  Bb6 {[%clk 0:00:44]} 27. Kg3 {[%clk 0:00:49]}  f5 {[%clk 0:00:17]} 28. Kh3 {[%clk 0:00:29]}  Nd3 {[%clk 0:00:09]} 29. Ne2 {[%clk 0:00:23]}  Qxc2 {[%clk 0:00:08]} 30. Nxc2 {[%clk 0:00:22]}  fxe4 {[%clk 0:00:09]} 31. fxe4 {[%clk 0:00:23]}  Nf2+ {[%clk 0:00:10]} 32. Kh4 {[%clk 0:00:21]}  Nxe4 {[%clk 0:00:10]} 33. Nb4 {[%clk 0:00:18]}  Bc5 {[%clk 0:00:09]} 34. Na6 {[%clk 0:00:17]}  Kf7 {[%clk 0:00:08]} 35. Nc1 {[%clk 0:00:12]}  Ke7 {[%clk 0:00:07]} 36. Nd3 {[%clk 0:00:12]}  Bd4 {[%clk 0:00:07]} 37. Nab4 {[%clk 0:00:11]}  Nf6 {[%clk 0:00:06]} 38. Nc6+ {[%clk 0:00:12]}  Kd7 {[%clk 0:00:06]} 39. Nxd4 {[%clk 0:00:12]}  exd4 {[%clk 0:00:07]} 40. Nb4 {[%clk 0:00:13]}  Kc7 {[%clk 0:00:07]} 41. Kg5 {[%clk 0:00:13]}  Ne4+ {[%clk 0:00:07]} 42. Kh6 {[%clk 0:00:14]}  Nc5 {[%clk 0:00:06]} 43. Kxh7 {[%clk 0:00:14]}  d3 {[%clk 0:00:07]} 44. Nxd3 {[%clk 0:00:13]}  Nxd3 {[%clk 0:00:08]} 45. Kxg6 {[%clk 0:00:14]}  Nf4+ {[%clk 0:00:08]} 46. Kf5 {[%clk 0:00:08]}  Nxg2 {[%clk 0:00:09]} 47. Ke4 {[%clk 0:00:08]}  Kb6 {[%clk 0:00:09]} 48. Kf3 {[%clk 0:00:07]}  Nh4+ {[%clk 0:00:09]} 49. Kg4 {[%clk 0:00:08]}  Ng6 {[%clk 0:00:09]} 50. Kf5 {[%clk 0:00:08]}  Nh4+ {[%clk 0:00:08]} 51. Kg4 {[%clk 0:00:08]}  Ng6 {[%clk 0:00:07]} 52. Kf5 {[%clk 0:00:08]}  Ne5 {[%clk 0:00:08]} 53. h4 {[%clk 0:00:08]}  Kc5 {[%clk 0:00:08]} 54. h5 {[%clk 0:00:09]}  Nf7 {[%clk 0:00:08]} 55. Kf6 {[%clk 0:00:08]}  Nh6 {[%clk 0:00:07]} 56. Kg6 {[%clk 0:00:08]}  Ng4 {[%clk 0:00:07]} 57. Kg5 {[%clk 0:00:07]}  Ne5 {[%clk 0:00:07]} 58. Kf6 {[%clk 0:00:06]}  Kxd5 {[%clk 0:00:07]} 59. Kf5 {[%clk 0:00:07]}  Nf7 {[%clk 0:00:07]} 60. Kf6 {[%clk 0:00:07]}  Nh6 {[%clk 0:00:07]} 61. Kg5 {[%clk 0:00:06]}  Ng8 {[%clk 0:00:06]} 62. Kg6 {[%clk 0:00:06]}  Ke6 {[%clk 0:00:07]} 63. Kg7 {[%clk 0:00:06]}  Nf6 {[%clk 0:00:07]} 64. h6 {[%clk 0:00:06]}  d5 {[%clk 0:00:08]} 65. Kg6 {[%clk 0:00:06]}  d4 {[%clk 0:00:08]} 0-1


[Site "https://www.chess.com"]

[Event "Titled Tuesday Blitz December 06 Late 2022"]
[White "Ward, Ieuan C"]
[Black "Kaplan, Avi Harrison"]
[WhiteFideId "406627"]
[BlackFideId "30934559"]
[WhiteElo "2315"]
[BlackElo "1983"]
[Result "0-1"]
[Round "04"]
[TimeControl "180+1"]
[Date "2022.12.07"]
[WhiteClock "0:00:04"]
[BlackClock "0:00:08"]

1. d4 {[%clk 0:03:00]}  Nf6 {[%clk 0:02:59]} 2. c4 {[%clk 0:03:01]}  c5 {[%clk 0:02:59]} 3. d5 {[%clk 0:03:01]}  e6 {[%clk 0:03:00]} 4. Nc3 {[%clk 0:03:01]}  exd5 {[%clk 0:03:01]} 5. cxd5 {[%clk 0:03:02]}  d6 {[%clk 0:03:01]} 6. e4 {[%clk 0:03:02]}  g6 {[%clk 0:03:02]} 7. f4 {[%clk 0:03:02]}  Bg7 {[%clk 0:03:03]} 8. Bb5+ {[%clk 0:03:02]}  Nfd7 {[%clk 0:03:03]} 9. Nf3 {[%clk 0:03:03]}  O-O {[%clk 0:02:56]} 10. O-O {[%clk 0:03:03]}  Nf6 {[%clk 0:02:54]} 11. a4 {[%clk 0:03:01]}  Bg4 {[%clk 0:02:53]} 12. Re1 {[%clk 0:02:56]}  a6 {[%clk 0:02:51]} 13. Bd3 {[%clk 0:02:50]}  Nbd7 {[%clk 0:02:49]} 14. Ra3 {[%clk 0:02:45]}  Qc7 {[%clk 0:02:44]} 15. Be3 {[%clk 0:02:32]}  c4 {[%clk 0:02:39]} 16. Bb1 {[%clk 0:02:28]}  Nc5 {[%clk 0:02:39]} 17. h3 {[%clk 0:02:23]}  Bxf3 {[%clk 0:02:37]} 18. Qxf3 {[%clk 0:02:24]}  Rfe8 {[%clk 0:02:36]} 19. Bxc5 {[%clk 0:02:09]}  Qxc5+ {[%clk 0:02:34]} 20. Kh2 {[%clk 0:02:10]}  b5 {[%clk 0:02:25]} 21. axb5 {[%clk 0:02:08]}  axb5 {[%clk 0:02:26]} 22. Rxa8 {[%clk 0:02:08]}  Rxa8 {[%clk 0:02:27]} 23. e5 {[%clk 0:02:08]}  Nd7 {[%clk 0:01:50]} 24. exd6 {[%clk 0:01:58]}  Qxd6 {[%clk 0:01:32]} 25. Nxb5 {[%clk 0:01:50]}  Qb4 {[%clk 0:01:32]} 26. d6 {[%clk 0:01:10]}  Rd8 {[%clk 0:01:30]} 27. Nc3 {[%clk 0:01:06]}  Qxb2 {[%clk 0:01:30]} 28. Nd5 {[%clk 0:01:02]}  Nc5 {[%clk 0:01:19]} 29. Ne7+ {[%clk 0:00:57]}  Kf8 {[%clk 0:01:17]} 30. Qc6 {[%clk 0:00:51]}  Qd4 {[%clk 0:00:58]} 31. Nd5 {[%clk 0:00:34]}  Ne6 {[%clk 0:00:27]} 32. d7 {[%clk 0:00:17]}  Bf6 {[%clk 0:00:22]} 33. Qd6+ {[%clk 0:00:11]}  Kg7 {[%clk 0:00:22]} 34. f5 {[%clk 0:00:08]}  Nf8 {[%clk 0:00:18]} 35. fxg6 {[%clk 0:00:06]}  hxg6 {[%clk 0:00:16]} 36. Qxf6+ {[%clk 0:00:05]}  Qxf6 {[%clk 0:00:16]} 37. Nxf6 {[%clk 0:00:06]}  Kxf6 {[%clk 0:00:17]} 38. Rc1 {[%clk 0:00:05]}  Nxd7 {[%clk 0:00:16]} 39. Rxc4 {[%clk 0:00:05]}  Ne5 {[%clk 0:00:17]} 40. Rf4+ {[%clk 0:00:06]}  Kg7 {[%clk 0:00:17]} 41. Rf2 {[%clk 0:00:06]}  Rd1 {[%clk 0:00:17]} 42. Be4 {[%clk 0:00:06]}  Re1 {[%clk 0:00:18]} 43. Bf3 {[%clk 0:00:06]}  Nd3 {[%clk 0:00:17]} 44. Rd2 {[%clk 0:00:06]}  Ne5 {[%clk 0:00:17]} 45. Rf2 {[%clk 0:00:06]}  Ra1 {[%clk 0:00:12]} 46. Kg3 {[%clk 0:00:06]}  Nd3 {[%clk 0:00:13]} 47. Rd2 {[%clk 0:00:06]}  Ra3 {[%clk 0:00:13]} 48. Kh2 {[%clk 0:00:06]}  Nf4 {[%clk 0:00:13]} 49. Rf2 {[%clk 0:00:06]}  Ne6 {[%clk 0:00:12]} 50. Be4 {[%clk 0:00:06]}  Ra4 {[%clk 0:00:12]} 51. Bd5 {[%clk 0:00:07]}  Ng5 {[%clk 0:00:11]} 52. Bb3 {[%clk 0:00:07]}  Rb4 {[%clk 0:00:11]} 53. Bc2 {[%clk 0:00:07]}  Ne6 {[%clk 0:00:11]} 54. Bd3 {[%clk 0:00:07]}  f6 {[%clk 0:00:11]} 55. Bc2 {[%clk 0:00:07]}  g5 {[%clk 0:00:10]} 56. Bd3 {[%clk 0:00:08]}  Nf4 {[%clk 0:00:11]} 57. Bc2 {[%clk 0:00:08]}  Rb2 {[%clk 0:00:11]} 58. g3 {[%clk 0:00:05]}  Nd3 {[%clk 0:00:11]} 59. Rd2 {[%clk 0:00:04]}  Ne1 {[%clk 0:00:09]} 60. Rd7+ {[%clk 0:00:04]}  Kf8 {[%clk 0:00:08]} 61. Rd6 {[%clk 0:00:03]}  Rxc2+ {[%clk 0:00:08]} 62. Kg1 {[%clk 0:00:04]}  Nf3+ {[%clk 0:00:08]} 63. Kf1 {[%clk 0:00:04]}  Kg7 {[%clk 0:00:08]} 64. h4 {[%clk 0:00:04]}  gxh4 {[%clk 0:00:07]} 65. gxh4 {[%clk 0:00:04]}  Nxh4 {[%clk 0:00:08]} 0-1


[Site "https://www.chess.com"]

[Event "Titled Tuesday Blitz December 06 Late 2022"]
[White "Womacka, Mathias"]
[Black "Chigaev, Maksim"]
[WhiteFideId "4611390"]
[BlackFideId "4108116"]
[WhiteElo "2377"]
[BlackElo "2542"]
[Result "0-1"]
[Round "04"]
[TimeControl "180+1"]
[Date "2022.12.06"]
[WhiteClock "0:00:04"]
[BlackClock "0:00:23"]

1. e4 {[%clk 0:02:57]}  c5 {[%clk 0:03:00]} 2. Nf3 {[%clk 0:02:57]}  e6 {[%clk 0:03:00]} 3. d4 {[%clk 0:02:56]}  cxd4 {[%clk 0:03:01]} 4. Nxd4 {[%clk 0:02:56]}  Nf6 {[%clk 0:03:02]} 5. Nc3 {[%clk 0:02:56]}  Nc6 {[%clk 0:03:03]} 6. Nxc6 {[%clk 0:02:50]}  bxc6 {[%clk 0:03:03]} 7. e5 {[%clk 0:02:50]}  Nd5 {[%clk 0:03:04]} 8. Ne4 {[%clk 0:02:50]}  Bb7 {[%clk 0:03:04]} 9. c4 {[%clk 0:02:45]}  Nb4 {[%clk 0:03:03]} 10. Nd6+ {[%clk 0:02:43]}  Bxd6 {[%clk 0:03:02]} 11. exd6 {[%clk 0:02:42]}  Qa5 {[%clk 0:02:53]} 12. Bd2 {[%clk 0:02:18]}  Qe5+ {[%clk 0:02:54]} 13. Be2 {[%clk 0:02:18]}  c5 {[%clk 0:02:54]} 14. O-O {[%clk 0:02:12]}  Qxd6 {[%clk 0:02:53]} 15. Bc3 {[%clk 0:02:03]}  Qxd1 {[%clk 0:02:50]} 16. Raxd1 {[%clk 0:02:04]}  Nxa2 {[%clk 0:02:44]} 17. Be5 {[%clk 0:01:59]}  Nb4 {[%clk 0:02:40]} 18. Bd6 {[%clk 0:01:53]}  Rc8 {[%clk 0:02:09]} 19. Ra1 {[%clk 0:01:52]}  a6 {[%clk 0:02:09]} 20. Ra5 {[%clk 0:01:50]}  f6 {[%clk 0:02:06]} 21. Rxc5 {[%clk 0:01:45]}  Rxc5 {[%clk 0:02:03]} 22. Bxc5 {[%clk 0:01:46]}  Nc6 {[%clk 0:02:03]} 23. b4 {[%clk 0:01:46]}  Kf7 {[%clk 0:01:34]} 24. Rd1 {[%clk 0:01:44]}  Nb8 {[%clk 0:01:09]} 25. Bd6 {[%clk 0:01:25]}  Nc6 {[%clk 0:01:09]} 26. Bc5 {[%clk 0:01:21]}  Bc8 {[%clk 0:01:05]} 27. f4 {[%clk 0:01:15]}  Re8 {[%clk 0:00:56]} 28. Bh5+ {[%clk 0:01:01]}  g6 {[%clk 0:00:55]} 29. Bf3 {[%clk 0:01:02]}  Ne7 {[%clk 0:00:51]} 30. g4 {[%clk 0:00:40]}  h6 {[%clk 0:00:40]} 31. Bd6 {[%clk 0:00:24]}  g5 {[%clk 0:00:35]} 32. fxg5 {[%clk 0:00:22]}  hxg5 {[%clk 0:00:34]} 33. b5 {[%clk 0:00:21]}  axb5 {[%clk 0:00:35]} 34. cxb5 {[%clk 0:00:22]}  Nd5 {[%clk 0:00:35]} 35. Bxd5 {[%clk 0:00:16]}  exd5 {[%clk 0:00:36]} 36. Rxd5 {[%clk 0:00:15]}  Re1+ {[%clk 0:00:34]} 37. Kf2 {[%clk 0:00:15]}  Rb1 {[%clk 0:00:34]} 38. Bc7 {[%clk 0:00:12]}  Ke7 {[%clk 0:00:31]} 39. b6 {[%clk 0:00:11]}  Bb7 {[%clk 0:00:29]} 40. Rd2 {[%clk 0:00:08]}  Rb3 {[%clk 0:00:25]} 41. Re2+ {[%clk 0:00:06]}  Kf7 {[%clk 0:00:25]} 42. Ra2 {[%clk 0:00:04]}  Ke6 {[%clk 0:00:23]} 0-1


[Site "https://www.chess.com"]

[Event "Titled Tuesday Blitz December 06 Late 2022"]
[White "Abasov, Nijat"]
[Black "BlackChess17"]
[WhiteFideId "13402960"]
[WhiteElo "2546"]
[BlackElo "2825"]
[Result "1-0"]
[Round "05"]
[TimeControl "180+1"]
[Date "2022.12.06"]
[WhiteClock "0:01:06"]
[BlackClock "0:00:46"]

1. d4 {[%clk 0:03:00]}  Nf6 {[%clk 0:02:55]} 2. Nf3 {[%clk 0:03:01]}  e6 {[%clk 0:02:55]} 3. Bf4 {[%clk 0:03:02]}  Bd6 {[%clk 0:02:48]} 4. e3 {[%clk 0:03:01]}  b6 {[%clk 0:02:46]} 5. Bxd6 {[%clk 0:02:56]}  cxd6 {[%clk 0:02:47]} 6. c4 {[%clk 0:02:57]}  Bb7 {[%clk 0:02:47]} 7. Nc3 {[%clk 0:02:57]}  d5 {[%clk 0:02:47]} 8. Rc1 {[%clk 0:02:46]}  dxc4 {[%clk 0:02:41]} 9. Bxc4 {[%clk 0:02:46]}  O-O {[%clk 0:02:41]} 10. O-O {[%clk 0:02:46]}  d6 {[%clk 0:02:42]} 11. a4 {[%clk 0:02:42]}  a6 {[%clk 0:02:41]} 12. Bd3 {[%clk 0:02:28]}  Nbd7 {[%clk 0:02:41]} 13. Nd2 {[%clk 0:02:28]}  Qe7 {[%clk 0:02:39]} 14. Qb3 {[%clk 0:02:27]}  Rac8 {[%clk 0:02:34]} 15. Ne2 {[%clk 0:02:19]}  e5 {[%clk 0:02:31]} 16. Qa3 {[%clk 0:02:11]}  Qe6 {[%clk 0:02:28]} 17. h3 {[%clk 0:02:00]}  h6 {[%clk 0:02:16]} 18. Bb1 {[%clk 0:01:41]}  a5 {[%clk 0:01:53]} 19. Ba2 {[%clk 0:01:33]}  Qe7 {[%clk 0:01:43]} 20. Ng3 {[%clk 0:01:30]}  g6 {[%clk 0:01:40]} 21. Nc4 {[%clk 0:01:24]}  Ne8 {[%clk 0:01:26]} 22. dxe5 {[%clk 0:01:21]}  Nxe5 {[%clk 0:01:25]} 23. Nxb6 {[%clk 0:01:20]}  Rxc1 {[%clk 0:01:25]} 24. Rxc1 {[%clk 0:01:21]}  Nf6 {[%clk 0:01:23]} 25. Rd1 {[%clk 0:01:14]}  Rd8 {[%clk 0:01:14]} 26. Nd5 {[%clk 0:01:11]}  Bxd5 {[%clk 0:01:12]} 27. Bxd5 {[%clk 0:01:12]}  Qc7 {[%clk 0:01:12]} 28. b4 {[%clk 0:01:08]}  Qc2 {[%clk 0:00:47]} 29. Bb3 {[%clk 0:01:06]}  Qc3 {[%clk 0:00:46]} 30. Bxf7+ {[%clk 0:01:06]} 1-0


[Site "https://www.chess.com"]

[Event "Titled Tuesday Blitz December 06 Late 2022"]
[White "Ansh M Shah"]
[Black "Nepo"]
[WhiteFideId "25033379"]
[WhiteElo "2084"]
[BlackElo "2217"]
[Result "1-0"]
[Round "05"]
[TimeControl "180+1"]
[Date "2022.12.07"]
[WhiteClock "0:00:08"]
[BlackClock "0:00:08"]

1. d4 {[%clk 0:03:00]}  Nf6 {[%clk 0:02:56]} 2. c4 {[%clk 0:03:00]}  g6 {[%clk 0:02:56]} 3. h4 {[%clk 0:03:01]}  Bg7 {[%clk 0:02:54]} 4. Nc3 {[%clk 0:03:01]}  d5 {[%clk 0:02:54]} 5. h5 {[%clk 0:02:59]}  c6 {[%clk 0:02:51]} 6. h6 {[%clk 0:02:57]}  Bf8 {[%clk 0:02:52]} 7. cxd5 {[%clk 0:02:57]}  cxd5 {[%clk 0:02:52]} 8. Nf3 {[%clk 0:02:57]}  Nc6 {[%clk 0:02:51]} 9. Bf4 {[%clk 0:02:57]}  e6 {[%clk 0:02:50]} 10. e3 {[%clk 0:02:56]}  Bd6 {[%clk 0:02:49]} 11. Bg5 {[%clk 0:02:35]}  Be7 {[%clk 0:02:48]} 12. Bd3 {[%clk 0:02:31]}  Ng4 {[%clk 0:02:35]} 13. Bf4 {[%clk 0:02:06]}  Bd6 {[%clk 0:02:30]} 14. Bxd6 {[%clk 0:02:00]}  Qxd6 {[%clk 0:02:29]} 15. Ng5 {[%clk 0:01:56]}  f5 {[%clk 0:02:14]} 16. Qe2 {[%clk 0:01:34]}  a6 {[%clk 0:02:10]} 17. f4 {[%clk 0:01:34]}  Bd7 {[%clk 0:02:09]} 18. Nf3 {[%clk 0:01:34]}  Qe7 {[%clk 0:02:03]} 19. O-O-O {[%clk 0:01:31]}  Rc8 {[%clk 0:01:58]} 20. Kb1 {[%clk 0:01:31]}  Nb4 {[%clk 0:01:56]} 21. Ne5 {[%clk 0:01:15]}  Nxe5 {[%clk 0:01:49]} 22. dxe5 {[%clk 0:01:15]}  Nxd3 {[%clk 0:01:47]} 23. Qxd3 {[%clk 0:01:15]}  Kf7 {[%clk 0:01:45]} 24. g4 {[%clk 0:00:56]}  b5 {[%clk 0:01:37]} 25. gxf5 {[%clk 0:00:37]}  gxf5 {[%clk 0:01:38]} 26. Rhg1 {[%clk 0:00:37]}  Rcg8 {[%clk 0:01:37]} 27. Qe2 {[%clk 0:00:28]}  Rg6 {[%clk 0:01:35]} 28. Qh5 {[%clk 0:00:18]}  Rg8 {[%clk 0:01:33]} 29. Rg5 {[%clk 0:00:17]}  Kf8 {[%clk 0:01:28]} 30. Rdg1 {[%clk 0:00:16]}  Be8 {[%clk 0:01:28]} 31. Rxg6 {[%clk 0:00:14]}  Rxg6 {[%clk 0:01:29]} 32. Rxg6 {[%clk 0:00:14]}  Bxg6 {[%clk 0:01:30]} 33. Qe2 {[%clk 0:00:12]}  Qc5 {[%clk 0:01:30]} 34. Qd2 {[%clk 0:00:11]}  Bh5 {[%clk 0:01:25]} 35. a3 {[%clk 0:00:10]}  Bf3 {[%clk 0:01:24]} 36. Ka1 {[%clk 0:00:09]}  a5 {[%clk 0:01:23]} 37. Qf2 {[%clk 0:00:08]}  Bg4 {[%clk 0:01:22]} 38. Qh4 {[%clk 0:00:07]}  Qe7 {[%clk 0:01:19]} 39. Qxe7+ {[%clk 0:00:05]}  Kxe7 {[%clk 0:01:20]} 40. Nxb5 {[%clk 0:00:05]}  Kd7 {[%clk 0:01:19]} 41. Nd4 {[%clk 0:00:05]}  Bd1 {[%clk 0:01:17]} 42. b4 {[%clk 0:00:05]}  axb4 {[%clk 0:01:16]} 43. axb4 {[%clk 0:00:06]}  Bh5 {[%clk 0:01:14]} 44. Kb2 {[%clk 0:00:07]}  Bf7 {[%clk 0:01:15]} 45. Ka3 {[%clk 0:00:07]}  Kc7 {[%clk 0:01:15]} 46. Ka4 {[%clk 0:00:08]}  Kb6 {[%clk 0:01:16]} 47. b5 {[%clk 0:00:07]}  Be8 {[%clk 0:01:16]} 48. Kb4 {[%clk 0:00:08]}  Bd7 {[%clk 0:01:16]} 49. Kc3 {[%clk 0:00:07]}  Kc5 {[%clk 0:01:13]} 50. Kd2 {[%clk 0:00:07]}  Kb6 {[%clk 0:01:10]} 51. Ke2 {[%clk 0:00:07]}  Bxb5+ {[%clk 0:01:06]} 52. Kf3 {[%clk 0:00:06]}  Bd7 {[%clk 0:01:04]} 53. Kg3 {[%clk 0:00:07]}  Kc7 {[%clk 0:01:03]} 54. Kh4 {[%clk 0:00:07]}  Kd8 {[%clk 0:01:03]} 55. Kg5 {[%clk 0:00:07]}  Ke7 {[%clk 0:01:04]} 56. Ne2 {[%clk 0:00:06]}  Be8 {[%clk 0:01:04]} 57. Ng3 {[%clk 0:00:07]}  Bg6 {[%clk 0:01:03]} 58. Nh1 {[%clk 0:00:06]}  Kd7 {[%clk 0:01:03]} 59. Nf2 {[%clk 0:00:07]}  Ke7 {[%clk 0:01:04]} 60. Nh3 {[%clk 0:00:07]}  Be8 {[%clk 0:01:03]} 61. Ng1 {[%clk 0:00:07]}  Bb5 {[%clk 0:01:02]} 62. Nf3 {[%clk 0:00:07]}  Be2 {[%clk 0:01:02]} 63. Nd4 {[%clk 0:00:06]}  Bc4 {[%clk 0:00:59]} 64. Nc2 {[%clk 0:00:06]}  Ba6 {[%clk 0:00:58]} 65. Nb4 {[%clk 0:00:06]}  Bb5 {[%clk 0:00:57]} 66. Na2 {[%clk 0:00:06]}  Bc4 {[%clk 0:00:53]} 67. Nc3 {[%clk 0:00:05]}  Kf7 {[%clk 0:00:52]} 68. Na4 {[%clk 0:00:05]}  Bb5 {[%clk 0:00:49]} 69. Nc5 {[%clk 0:00:05]}  Bc6 {[%clk 0:00:48]} 70. Na6 {[%clk 0:00:05]}  Bb7 {[%clk 0:00:48]} 71. Nb4 {[%clk 0:00:05]}  Ke7 {[%clk 0:00:47]} 72. Nd3 {[%clk 0:00:05]}  Ba6 {[%clk 0:00:46]} 73. Nc5 {[%clk 0:00:06]}  Bc4 {[%clk 0:00:47]} 74. Nb7 {[%clk 0:00:06]}  Bf1 {[%clk 0:00:41]} 75. Nd6 {[%clk 0:00:06]}  Be2 {[%clk 0:00:40]} 76. Nc8+ {[%clk 0:00:06]}  Kd7 {[%clk 0:00:38]} 77. Nb6+ {[%clk 0:00:06]}  Ke7 {[%clk 0:00:39]} 78. Na4 {[%clk 0:00:06]}  Bb5 {[%clk 0:00:36]} 79. Nc5 {[%clk 0:00:06]}  Bc4 {[%clk 0:00:35]} 80. Nb7 {[%clk 0:00:05]}  Ba2 {[%clk 0:00:33]} 81. Na5 {[%clk 0:00:05]}  Bb1 {[%clk 0:00:32]} 82. Nc6+ {[%clk 0:00:06]}  Kf7 {[%clk 0:00:32]} 83. Nd4 {[%clk 0:00:05]}  Be4 {[%clk 0:00:31]} 84. Nb5 {[%clk 0:00:04]}  Bd3 {[%clk 0:00:30]} 85. Nd6+ {[%clk 0:00:05]}  Ke7 {[%clk 0:00:30]} 86. Kh5 {[%clk 0:00:05]}  Be2+ {[%clk 0:00:25]} 87. Kg5 {[%clk 0:00:06]}  Bd3 {[%clk 0:00:24]} 88. Kh4 {[%clk 0:00:06]}  Be2 {[%clk 0:00:24]} 89. Kg3 {[%clk 0:00:05]}  Bd3 {[%clk 0:00:24]} 90. Kf2 {[%clk 0:00:05]}  Be4 {[%clk 0:00:18]} 91. Ke2 {[%clk 0:00:05]}  Kd7 {[%clk 0:00:17]} 92. Kd2 {[%clk 0:00:05]}  Kc6 {[%clk 0:00:17]} 93. Kc3 {[%clk 0:00:06]}  Kc5 {[%clk 0:00:18]} 94. Ne8 {[%clk 0:00:04]}  Bf3 {[%clk 0:00:14]} 95. Ng7 {[%clk 0:00:04]}  d4+ {[%clk 0:00:11]} 96. exd4+ {[%clk 0:00:04]}  Kd5 {[%clk 0:00:12]} 97. Kd3 {[%clk 0:00:05]}  Be4+ {[%clk 0:00:11]} 98. Ke3 {[%clk 0:00:05]}  Bc2 {[%clk 0:00:10]} 99. Nh5 {[%clk 0:00:06]}  Ba4 {[%clk 0:00:08]} 100. Nf6+ {[%clk 0:00:07]}  Kc4 {[%clk 0:00:09]} 101. Nxh7 {[%clk 0:00:07]}  Be8 {[%clk 0:00:10]} 102. Nf8 {[%clk 0:00:07]}  Bg6 {[%clk 0:00:08]} 103. h7 {[%clk 0:00:08]} 1-0


[Site "https://www.chess.com"]

[Event "Titled Tuesday Blitz December 06 Late 2022"]
[White "Baches Garcia, Guillermo"]
[Black "Radovanovic, Dusan"]
[WhiteFideId "2209764"]
[BlackFideId "926868"]
[WhiteElo "2462"]
[BlackElo "2337"]
[Result "0-1"]
[Round "05"]
[TimeControl "180+1"]
[Date "2022.12.07"]
[WhiteClock "0:00:46"]
[BlackClock "0:00:45"]

1. e4 {[%clk 0:03:00]}  c5 {[%clk 0:02:59]} 2. Nf3 {[%clk 0:03:01]}  d6 {[%clk 0:02:59]} 3. d4 {[%clk 0:03:01]}  cxd4 {[%clk 0:03:00]} 4. Nxd4 {[%clk 0:03:02]}  Nf6 {[%clk 0:03:01]} 5. Nc3 {[%clk 0:03:02]}  g6 {[%clk 0:03:01]} 6. g3 {[%clk 0:03:02]}  Nc6 {[%clk 0:03:00]} 7. Nde2 {[%clk 0:03:01]}  h5 {[%clk 0:02:59]} 8. h3 {[%clk 0:03:01]}  Bd7 {[%clk 0:02:59]} 9. Bg2 {[%clk 0:03:00]}  Qc8 {[%clk 0:03:00]} 10. Nd5 {[%clk 0:02:59]}  Nxd5 {[%clk 0:02:50]} 11. exd5 {[%clk 0:03:00]}  Ne5 {[%clk 0:02:50]} 12. b3 {[%clk 0:02:51]}  Bg7 {[%clk 0:02:50]} 13. Rb1 {[%clk 0:02:42]}  Bf5 {[%clk 0:02:18]} 14. Nd4 {[%clk 0:02:41]}  Nd3+ {[%clk 0:01:55]} 15. cxd3 {[%clk 0:02:33]}  Bxd4 {[%clk 0:01:54]} 16. Be3 {[%clk 0:02:24]}  Qc5 {[%clk 0:01:28]} 17. Ke2 {[%clk 0:01:32]}  O-O {[%clk 0:01:18]} 18. Qc1 {[%clk 0:01:30]}  Qb6 {[%clk 0:01:11]} 19. Qc4 {[%clk 0:01:22]}  Bxe3 {[%clk 0:01:02]} 20. fxe3 {[%clk 0:01:22]}  Rac8 {[%clk 0:01:02]} 21. Qf4 {[%clk 0:01:04]}  Rc2+ {[%clk 0:01:01]} 22. Kf3 {[%clk 0:01:04]}  Bxd3 {[%clk 0:01:00]} 23. g4 {[%clk 0:01:03]}  h4 {[%clk 0:00:59]} 24. Bf1 {[%clk 0:00:52]}  Qb5 {[%clk 0:00:49]} 25. Qd4 {[%clk 0:00:47]}  Bxf1 {[%clk 0:00:47]} 26. Rhxf1 {[%clk 0:00:46]}  Qe2+ {[%clk 0:00:45]} 0-1


[Site "https://www.chess.com"]